bitfinex/quotes_SOLUSD_20240714
["timestamp","ask_amount","ask_price","bid_price","bid_amount"]
[1720999773356,6.743,148.31,148.25,16.62885228]
[1720999773562,15.28,148.3,148.25,16.62885228]
[1720999774057,15.28,148.29,148.24,15.28]
[1720999775161,15.28,148.29,148.22,6.6465]
[1720999775453,15.28,148.29,148.24,15.28]
[1720999776369,15.28,148.3,148.25,15.28]
[1720999777445,15.28,148.29,148.24,15.28]
[1720999777962,15.28,148.29,148.25,1.34888831]
[1720999778747,15.28,148.29,148.25,16.62888831]
[1720999778955,15.28,148.29,148.25,15.28]
[1720999779155,6.7427,148.31,148.25,15.28]
[1720999779555,6.7422,148.32,148.25,15.28]
[1720999779751,15.28,148.3,148.26,15.28]
[1720999779950,15.28,148.3,148.25,15.28]
[1720999780451,15.28,148.29,148.22,6.6465]
[1720999780869,15.28,148.28,148.22,6.6465]
[1720999781079,15.28,148.28,148.23,15.28]
[1720999781376,15.28,148.27,148.22,21.9265]
[1720999782961,15.28,148.27,148.22,6.6465]
[1720999783156,15.28,148.26,148.22,6.6465]
[1720999783386,15.28,148.26,148.21,15.28]
[1720999783387,15.28,148.25,148.2,30.4585]
[1720999783745,15.28,148.25,148.2,15.28]
[1720999784651,22.5436,148.29,148.2,15.28]
[1720999784852,15.28,148.25,148.2,15.28]
[1720999785563,15.28,148.25,148.19,13.41928311]
[1720999785871,15.28,148.24,148.19,28.69928311]
[1720999786284,15.28,148.25,148.2,16.62929988]
[1720999786456,15.28,148.25,148.2,15.28]
[1720999787269,22.5436,148.29,148.21,16.62929098]
[1720999787470,15.28,148.26,148.22,15.28]
[1720999787674,45.0,148.28,148.22,15.28]
[1720999787879,15.28,148.28,148.23,16.62908773]
[1720999788094,15.28,148.28,148.23,15.28]
[1720999788553,15.28,148.27,148.2,7.05278425]
[1720999788755,15.28,148.26,148.22,15.28]
[1720999789257,15.28,148.26,148.21,15.28]
[1720999789454,15.28,148.26,148.2,7.05278425]
[1720999789686,15.28,148.26,148.21,15.28]
[1720999789900,15.28,148.26,148.21,16.62917331]
[1720999790087,15.28,148.27,148.21,1.34917331]
[1720999790293,15.28,148.28,148.23,15.28]
[1720999790878,15.8,148.29,148.23,15.28]
[1720999791056,15.28,148.28,148.23,15.28]
[1720999791668,6.7426,148.31,148.24,16.62908747]
[1720999791869,15.28,148.29,148.21,1.34894141]
[1720999792069,15.28,148.29,148.2,7.05278425]
[1720999792377,15.28,148.28,148.23,15.28]
[1720999792681,15.28,148.28,148.24,16.62898994]
[1720999792879,15.28,148.28,148.24,15.28]
[1720999793368,15.28,148.29,148.24,15.28]
[1720999793564,45.0,148.3,148.24,15.28]
[1720999793877,60.28,148.3,148.25,16.62890087]
[1720999794077,60.28,148.3,148.25,15.28]
[1720999795687,6.7422,148.32,148.26,15.28]
[1720999795879,15.28,148.32,148.27,15.28]
[1720999796902,37.7425,148.33,148.28,16.62868666]
[1720999797086,37.7424,148.33,148.28,15.28]
[1720999797295,15.28,148.31,148.27,15.28]
[1720999797473,15.28,148.31,148.25,6.3455]
[1720999797674,15.28,148.31,148.27,15.28]
[1720999797873,15.28,148.31,148.26,15.28]
[1720999799682,15.28,148.31,148.27,16.62870913]
[1720999799880,22.4625,148.33,148.27,16.62870913]
[1720999800078,15.28,148.31,148.27,16.62870913]
[1720999800272,15.28,148.32,148.27,15.28]
[1720999800479,15.28,148.3,148.22,16.2497]
[1720999800794,15.28,148.3,148.25,15.28]
[1720999800996,15.28,148.3,148.26,15.28]
[1720999801369,15.28,148.31,148.26,15.28]
[1720999801574,6.7423,148.32,148.26,15.28]
[1720999801877,15.28,148.31,148.26,15.28]
[1720999802478,22.0226,148.31,148.22,16.2497]
[1720999802691,22.0226,148.31,148.26,15.28]
[1720999803396,15.28,148.3,148.25,15.28]
[1720999804703,15.7207,148.33,148.28,15.28]
[1720999804907,15.28,148.32,148.28,15.28]
[1720999805106,31.0007,148.33,148.28,15.28]
[1720999805478,15.28,148.32,148.28,15.28]
[1720999806387,6.7414,148.34,148.29,1.34859347]
[1720999806587,6.7414,148.34,148.29,16.62859347]
[1720999806588,15.28,148.34,148.29,16.62859347]
[1720999806800,15.28,148.33,148.28,15.28]
[1720999806977,15.28,148.33,148.29,1.34853697]
[1720999807379,22.0212,148.34,148.29,16.62853697]
[1720999807580,22.0212,148.34,148.29,15.28]
[1720999808015,13.18753788,148.36,148.26,6.2518]
[1720999808185,15.28,148.34,148.29,15.28]
[1720999809880,15.28,148.34,148.3,15.28]
[1720999810390,15.28,148.34,148.29,15.28]
[1720999810595,22.0212,148.34,148.29,15.28]
[1720999811798,15.28,148.34,148.29,15.28]
[1720999812012,22.0209,148.35,148.3,15.28]
[1720999813108,13.18753788,148.36,148.3,15.28]
[1720999813412,30.9691,148.37,148.32,15.28]
[1720999813981,15.28,148.36,148.32,15.28]
[1720999814182,22.0203,148.36,148.32,15.28]
[1720999814612,15.28,148.36,148.31,16.62833717]
[1720999814816,61.12,148.4,148.26,6.2518]
[1720999815116,6.7418,148.33,148.28,15.28]
[1720999815414,31.4612,148.35,148.3,15.28]
[1720999815617,38.202,148.35,148.26,6.2518]
[1720999815788,38.202,148.35,148.3,15.28]
[1720999815789,22.0212,148.34,148.3,15.28]
[1720999815987,22.0212,148.34,148.29,15.28]
[1720999816415,15.28,148.34,148.29,15.28]
[1720999816915,22.9221,148.35,148.27,15.28]
[1720999816916,22.0223,148.32,148.27,15.28]
[1720999817919,15.28,148.32,148.27,15.28]
[1720999818502,6.7426,148.31,148.23,7.04468096]
[1720999818826,15.28,148.31,148.26,15.28]
[1720999819122,16.1812,148.35,148.26,15.28]
[1720999819320,16.1812,148.35,148.23,7.04468096]
[1720999819321,15.28,148.32,148.27,15.28]
[1720999819696,6.7417,148.34,148.27,15.28]
[1720999819924,22.922,148.35,148.28,15.28]
[1720999820223,22.922,148.35,148.29,15.28]
[1720999820391,15.28,148.34,148.3,15.28]
[1720999821310,15.28,148.34,148.29,15.28]
[1720999821819,22.0213,148.34,148.24,7.04848139]
[1720999822117,22.0213,148.34,148.29,15.28]
[1720999822924,15.28,148.33,148.28,15.28]
[1720999823106,15.28,148.33,148.24,7.04848139]
[1720999823301,15.28,148.32,148.27,15.28]
[1720999823926,15.28,148.32,148.24,7.04848139]
[1720999824318,15.28,148.32,148.26,15.28]
[1720999824319,15.28,148.31,148.26,15.28]
[1720999824621,15.28,148.31,148.24,7.04848139]
[1720999824622,15.28,148.3,148.25,15.28]
[1720999825128,6.7426,148.31,148.24,7.04848139]
[1720999825129,15.28,148.29,148.24,7.04848139]
[1720999825300,15.28,148.29,148.24,22.32848139]
[1720999825816,15.28,148.28,148.24,22.32848139]
[1720999826330,15.28,148.29,148.24,22.32848139]
[1720999827221,15.28,148.3,148.26,15.28]
[1720999827394,15.28,148.31,148.26,15.28]
[1720999829135,6.7426,148.31,148.25,15.28]
[1720999829310,15.28,148.29,148.25,15.28]
[1720999830126,15.2347,148.28,148.24,7.0462315]
[1720999830328,15.28,148.26,148.24,7.0462315]
[1720999830840,15.28,148.25,148.2,15.28]
[1720999831041,15.28,148.25,148.21,7.04822987]
[1720999832226,21.9787,148.28,148.16,15.28]
[1720999832227,15.28,148.22,148.16,15.28]
[1720999832450,15.28,148.2,148.15,15.28]
[1720999832733,15.28,148.2,148.16,7.04769299]
[1720999832939,6.7463,148.23,148.16,7.04769299]
[1720999833236,15.28,148.21,148.16,22.32769299]
[1720999834042,15.28,148.2,148.16,7.04769299]
[1720999836331,15.28,148.21,148.16,23.67747386]
[1720999836634,15.28,148.21,148.17,15.28]
[1720999837348,6.7463,148.23,148.17,15.28]
[1720999837636,15.28,148.21,148.16,22.32769299]
[1720999838013,15.28,148.21,148.16,7.04769299]
[1720999838235,6.7461,148.24,148.17,16.62963652]
[1720999838428,6.7461,148.24,148.18,15.28]
[1720999838429,15.28,148.23,148.18,15.28]
[1720999839130,6.7462,148.23,148.18,15.28]
[1720999839319,22.0262,148.23,148.18,15.28]
[1720999839732,15.28,148.23,148.18,15.28]
[1720999839931,6.7453,148.25,148.19,15.28]
[1720999840114,22.0259,148.24,148.19,15.28]
[1720999840627,6.7462,148.23,148.16,7.04769299]
[1720999840940,22.0259,148.24,148.19,15.28]
[1720999841454,15.28,148.23,148.19,15.28]
[1720999842242,15.28,148.23,148.16,7.04769299]
[1720999842450,15.28,148.22,148.18,15.28]
[1720999842839,15.28,148.21,148.16,22.33200618]
[1720999843440,22.0272,148.21,148.16,22.33200618]
[1720999844334,15.28,148.21,148.16,22.33200618]
[1720999844932,15.28,148.2,148.16,7.05200618]
[1720999845354,15.28,148.21,148.16,22.33200618]
[1720999846867,15.28,148.2,148.16,7.05200618]
[1720999847164,15.28,148.19,148.15,15.28]
[1720999847364,15.28,148.2,148.15,15.28]
[1720999847543,15.28,148.19,148.14,21.7634]
[1720999848675,15.28,148.19,148.13,7.05320439]
[1720999848966,15.28,148.18,148.13,22.33320439]
[1720999850345,15.28,148.18,148.13,7.05320439]
[1720999850541,15.28,148.17,148.13,7.05320439]
[1720999850851,15.28,148.17,148.13,22.33320439]
[1720999851973,15.28,148.17,148.13,7.05320439]
[1720999852265,15.28,148.16,148.13,7.05320439]
[1720999852482,15.28,148.16,148.12,0.8453082]
[1720999852787,15.28,148.16,148.12,16.1253082]
[1720999853070,60.28,148.15,148.12,0.8453082]
[1720999853245,15.28,148.14,148.12,0.8453082]
[1720999854164,15.28,148.15,148.12,0.8453082]
[1720999854377,15.28,148.16,148.12,0.8453082]
[1720999854539,15.28,148.15,148.12,0.8453082]
[1720999854946,15.28,148.17,148.12,16.1253082]
[1720999855260,6.749,148.17,148.12,16.1253082]
[1720999855438,15.28,148.16,148.12,16.1253082]
[1720999855641,6.7485,148.18,148.12,16.1253082]
[1720999856044,6.7485,148.18,148.13,15.28]
[1720999856239,16.469,148.21,148.14,15.28]
[1720999856549,15.28,148.19,148.14,15.28]
[1720999857358,6.7476,148.2,148.15,15.28]
[1720999857359,15.28,148.2,148.15,15.28]
[1720999857775,22.0277,148.2,148.15,15.28]
[1720999858069,15.28,148.19,148.14,15.28]
[1720999858481,23.2163,148.21,148.14,15.28]
[1720999858652,15.28,148.19,148.14,15.28]
[1720999860770,23.2162,148.21,148.15,15.28]
[1720999860972,6.7468,148.22,148.13,1.34988022]
[1720999861287,6.7466,148.23,148.17,15.28]
[1720999861578,15.28,148.23,148.18,15.28]
[1720999861785,22.0262,148.23,148.18,15.28]
[1720999861995,22.0267,148.22,148.17,15.28]
[1720999862195,22.0267,148.22,148.12,7.4921082]
[1720999862359,15.28,148.2,148.15,15.28]
[1720999863060,22.0273,148.21,148.16,15.28]
[1720999863557,22.0273,148.21,148.13,1.34978355]
[1720999863759,22.0273,148.21,148.16,15.28]
[1720999864176,16.3425,148.24,148.13,1.34978355]
[1720999864384,15.28,148.22,148.18,15.28]
[1720999864583,15.28,148.22,148.13,45.0]
[1720999864881,15.28,148.22,148.18,15.28]
[1720999865452,16.3425,148.24,148.18,15.28]
[1720999865656,15.28,148.23,148.18,15.28]
[1720999866073,15.28,148.23,148.13,45.0]
[1720999866288,15.28,148.22,148.17,15.28]
[1720999866491,6.7462,148.23,148.17,15.28]
[1720999866791,15.28,148.22,148.17,15.28]
[1720999866972,15.28,148.23,148.18,15.28]
[1720999867486,23.0883,148.24,148.19,15.28]
[1720999867806,23.0883,148.24,148.13,45.0]
[1720999867807,6.7467,148.22,148.18,15.28]
[1720999868170,22.0267,148.22,148.18,15.28]
[1720999868370,15.28,148.22,148.18,15.28]
[1720999868783,15.28,148.23,148.18,15.28]
[1720999869368,15.28,148.23,148.19,15.28]
[1720999869890,38.3687,148.24,148.19,15.28]
[1720999870369,15.28,148.23,148.19,15.28]
[1720999870769,38.3687,148.24,148.19,15.28]
[1720999872397,23.0887,148.24,148.19,15.28]
[1720999872567,38.3687,148.24,148.19,15.28]
[1720999872767,22.0254,148.25,148.2,15.28]
[1720999874194,6.7458,148.24,148.2,15.28]
[1720999874394,22.0258,148.24,148.2,15.28]
[1720999875793,15.5825,148.27,148.18,6.0622]
[1720999875794,22.0263,148.23,148.18,6.0622]
[1720999875985,22.0263,148.23,148.18,21.3422]
[1720999876185,15.28,148.23,148.18,6.0622]
[1720999876485,15.28,148.23,148.18,21.3422]
[1720999876685,22.0259,148.24,148.19,15.28]
[1720999876898,6.7459,148.24,148.19,15.28]
[1720999877070,22.0259,148.24,148.19,15.28]
[1720999877908,6.7462,148.23,148.19,15.28]
[1720999878268,22.0262,148.23,148.18,21.3422]
[1720999878772,22.0262,148.23,148.19,15.28]
[1720999879201,6.7457,148.25,148.19,15.28]
[1720999879496,45.0,148.24,148.2,15.28]
[1720999880294,67.0258,148.24,148.19,15.28]
[1720999881792,15.28,148.23,148.18,21.3422]
[1720999882386,45.0,148.24,148.18,21.3422]
[1720999882699,60.28,148.24,148.19,15.28]
[1720999883092,45.0,148.24,148.14,6.4057]
[1720999883295,15.28,148.2,148.14,6.4057]
[1720999883468,45.0,148.24,148.14,6.4057]
[1720999883469,6.7465,148.23,148.16,15.28]
[1720999883674,15.28,148.21,148.17,15.28]
[1720999884074,22.0272,148.21,148.16,15.28]
[1720999884599,15.28,148.2,148.16,15.28]
[1720999884893,15.28,148.21,148.17,15.28]
[1720999885483,15.28,148.22,148.18,15.28]
[1720999885688,15.28,148.23,148.18,15.28]
[1720999886200,60.28,148.24,148.19,15.28]
[1720999886496,45.0,148.24,148.2,15.28]
[1720999886871,6.745,148.26,148.21,15.28]
[1720999887202,15.28,148.25,148.2,15.28]
[1720999887407,22.0253,148.25,148.2,15.28]
[1720999889093,6.7465,148.23,148.15,1.34942355]
[1720999889294,22.0265,148.23,148.18,15.28]
[1720999889501,15.28,148.23,148.14,6.4057]
[1720999889696,22.0263,148.23,148.18,15.28]
[1720999892300,15.28,148.22,148.14,6.4057]
[1720999892609,15.28,148.21,148.16,15.28]
[1720999893381,15.28,148.2,148.14,6.4057]
[1720999893709,15.28,148.2,148.13,7.04865217]
[1720999893881,15.28,148.19,148.14,15.28]
[1720999895192,15.28,148.19,148.13,7.05058673]
[1720999895380,45.0,148.18,148.14,15.28]
[1720999895588,15.28,148.17,148.13,7.05058673]
[1720999895785,15.28,148.17,148.12,16.1253082]
[1720999896806,15.28,148.17,148.13,15.28]
[1720999897006,45.0,148.18,148.13,15.28]
[1720999897313,60.28,148.18,148.14,15.28]
[1720999897812,60.28,148.18,148.13,15.28]
[1720999898109,22.431,148.21,148.14,15.28]
[1720999898288,15.28,148.2,148.15,15.28]
[1720999899411,15.28,148.19,148.12,0.8453082]
[1720999899716,15.28,148.19,148.14,15.28]
[1720999900415,22.0281,148.19,148.14,15.28]
[1720999900614,22.0281,148.19,148.12,0.8453082]
[1720999900615,15.28,148.18,148.12,0.8453082]
[1720999900796,15.28,148.17,148.12,16.1253082]
[1720999900990,45.0,148.16,148.12,0.8453082]
[1720999901190,15.28,148.15,148.12,0.8453082]
[1720999901695,60.28,148.16,148.12,0.8453082]
[1720999902411,60.28,148.16,148.12,16.1253082]
[1720999902609,67.0294,148.16,148.12,0.8453082]
[1720999902801,31.5055,148.15,148.12,0.8453082]
[1720999904794,38.2555,148.15,148.12,0.8453082]
[1720999905116,60.28,148.14,148.12,0.8453082]
[1720999907105,15.28,148.13,148.12,0.8453082]
[1720999907410,60.28,148.13,148.12,0.8453082]
[1720999910216,67.0308,148.13,148.12,0.8453082]
[1720999914713,51.7508,148.13,148.12,0.8453082]
[1720999915039,60.28,148.13,148.12,0.8453082]
[1720999915225,6.7505,148.14,148.12,0.8453082]
[1720999915402,22.0305,148.14,148.12,0.8453082]
[1720999917131,6.7505,148.14,148.12,0.8453082]
[1720999917304,22.0305,148.14,148.12,0.8453082]
[1720999918317,15.28,148.13,148.12,0.8453082]
[1720999918928,22.0308,148.13,148.12,0.8453082]
[1720999920716,6.7504,148.14,148.12,0.8453082]
[1720999921022,22.0304,148.14,148.12,0.8453082]
[1720999921402,6.7504,148.14,148.12,0.8453082]
[1720999921606,22.0304,148.14,148.12,0.8453082]
[1720999921823,6.7504,148.14,148.12,0.8453082]
[1720999922124,22.0304,148.14,148.12,0.8453082]
[1720999922501,13.83423869,148.21,148.12,0.8453082]
[1720999922502,13.4719095,148.29,148.13,37.444]
[1720999922723,15.28,148.26,148.21,15.28]
[1720999923024,6.7444,148.27,148.21,15.28]
[1720999923208,6.7438,148.29,148.21,15.28]
[1720999923413,15.28,148.27,148.22,15.28]
[1720999923612,6.7435,148.29,148.23,15.28]
[1720999923812,6.7435,148.29,148.2,7.80846463]
[1720999923813,6.7435,148.29,148.24,15.28]
[1720999924028,15.28,148.29,148.24,15.28]
[1720999924208,6.7431,148.3,148.2,22.1231]
[1720999924413,6.7435,148.29,148.2,22.1231]
[1720999925313,6.7435,148.29,148.21,1.34920684]
[1720999926029,6.7435,148.29,148.2,22.1231]
[1720999926406,6.744,148.28,148.2,22.1231]
[1720999926729,45.0,148.27,148.2,22.1231]
[1720999928638,45.0,148.28,148.2,22.1231]
[1720999932430,51.744,148.28,148.2,22.1231]
[1720999932738,45.0,148.28,148.2,6.4591]
[1720999933234,6.7449,148.26,148.2,6.4591]
[1720999933535,45.0,148.25,148.2,6.4591]
[1720999934038,45.0,148.26,148.2,6.4591]
[1720999934539,45.0,148.27,148.2,6.4591]
[1720999935315,51.744,148.28,148.2,6.4591]
[1720999935743,6.7445,148.27,148.2,6.4591]
[1720999936034,45.0,148.26,148.2,6.4591]
[1720999938113,51.7449,148.26,148.2,6.4591]
[1720999939341,45.0,148.26,148.2,6.4591]
[1720999941430,45.0,148.27,148.2,6.4591]
[1720999942347,30.0,148.24,148.2,6.4591]
[1720999944240,30.0,148.24,148.2,21.7891]
[1720999944447,45.0,148.23,148.2,21.7891]
[1720999944652,45.0,148.23,148.19,15.33]
[1720999946126,45.0,148.23,148.2,15.33]
[1720999946322,45.0,148.23,148.21,15.33]
[1720999947261,45.0,148.23,148.17,6.3401]
[1720999947431,45.0,148.23,148.19,15.33]
[1720999949231,30.0,148.22,148.19,15.33]
[1720999949835,6.7417,148.34,148.22,9.4315]
[1720999950141,6.7413,148.34,148.28,15.33]
[1720999950438,16.2253,148.35,148.29,15.33]
[1720999950657,16.2253,148.35,148.22,9.4315]
[1720999950658,13.36040536,148.36,148.31,15.33]
[1720999950832,15.33,148.36,148.31,15.33]
[1720999951032,22.0708,148.36,148.31,15.33]
[1720999951335,15.33,148.36,148.31,15.33]
[1720999952046,15.33,148.37,148.32,15.33]
[1720999952232,6.7394,148.38,148.28,1.34856947]
[1720999953441,45.0,148.37,148.27,36.9971]
[1720999953851,51.7399,148.37,148.27,36.9971]
[1720999954434,51.7399,148.37,148.28,1.34861549]
[1720999954752,45.0,148.37,148.27,36.9971]
[1720999955056,6.7407,148.36,148.27,36.9971]
[1720999955258,51.7409,148.35,148.27,36.9971]
[1720999955440,6.7409,148.35,148.27,36.9971]
[1720999955641,45.0,148.34,148.27,36.9971]
[1720999955853,45.0,148.34,148.27,6.3971]
[1720999956458,51.7415,148.34,148.24,30.6]
[1720999956661,51.7415,148.34,148.25,20.0]
[1720999957357,45.0,148.34,148.24,21.34892094]
[1720999957734,51.7413,148.34,148.24,20.0]
[1720999957939,6.7417,148.33,148.24,20.0]
[1720999958135,60.3469,148.32,148.24,20.0]
[1720999959043,60.3469,148.32,148.25,31.94897169]
[1720999959367,15.1496,148.36,148.25,30.6]
[1720999959658,45.0,148.35,148.25,30.6]
[1720999959862,45.0,148.35,148.26,21.34869735]
[1720999960089,45.0,148.35,148.27,1.34866329]
[1720999960249,45.0,148.35,148.26,20.0]
[1720999960757,51.7409,148.35,148.26,20.0]
[1720999961269,6.7413,148.34,148.26,20.0]
[1720999961441,45.0,148.33,148.26,20.0]
[1720999961643,51.7409,148.35,148.26,20.0]
[1720999962673,51.7409,148.35,148.25,30.6]
[1720999964051,21.8901,148.36,148.25,30.6]
[1720999964242,6.7408,148.35,148.25,30.6]
[1720999965365,45.0,148.34,148.25,30.6]
[1720999966264,6.7425,148.32,148.23,6.4297]
[1720999966461,45.0,148.34,148.23,6.4297]
[1720999966462,45.0,148.31,148.23,6.4297]
[1720999966963,45.0,148.32,148.23,6.4297]
[1720999967751,45.0,148.32,148.23,7.77871692]
[1720999967970,45.0,148.33,148.23,7.77871692]
[1720999969463,45.0,148.33,148.25,30.6]
[1720999969669,15.1496,148.36,148.25,30.6]
[1720999969873,21.8901,148.36,148.25,30.6]
[1720999970251,21.89,148.36,148.25,30.6]
[1720999971275,45.0,148.35,148.25,30.6]
[1720999971581,51.7409,148.35,148.25,30.6]
[1720999972269,45.0,148.35,148.26,1.34870702]
[1720999972476,45.0,148.35,148.27,1.34862734]
[1720999973447,45.0,148.35,148.26,20.0]
[1720999974873,45.0,148.35,148.27,1.34864144]
[1720999976367,45.0,148.35,148.26,20.0]
[1720999978474,51.7408,148.35,148.25,30.6]
[1720999978881,51.7408,148.35,148.26,20.0]
[1720999979082,6.7415,148.34,148.25,30.6]
[1720999979285,45.0,148.33,148.24,30.6]
[1720999981092,45.0,148.33,148.24,31.94890469]
[1720999981289,45.0,148.33,148.25,20.0]
[1720999981584,45.0,148.33,148.25,21.34881286]
[1720999981796,45.0,148.34,148.25,20.0]
[1720999982372,45.0,148.34,148.26,1.34877996]
[1720999982578,45.0,148.35,148.26,1.34877996]
[1720999983885,30.64468713,148.39,148.27,47.97087889]
[1720999985118,45.0,148.38,148.27,47.97087889]
[1720999986588,6.7399,148.37,148.27,47.97087889]
[1720999987114,16.8458,148.41,148.27,47.97087889]
[1720999987115,15.4502,148.47,148.34,50.88]
[1720999987401,15.4502,148.47,148.39,6.621]
[1720999987803,22.1838,148.51,148.39,6.621]
[1720999988102,3.1603273,148.5,148.4,20.0]
[1720999988276,22.1838,148.51,148.4,20.0]
[1720999988481,6.734,148.5,148.4,20.0]
[1720999988688,22.1837,148.51,148.41,1.34736413]
[1720999989598,22.1837,148.51,148.4,20.0]
[1720999990094,15.4502,148.51,148.4,20.0]
[1720999990467,45.0,148.5,148.4,20.0]
[1720999990874,6.7345,148.49,148.4,20.0]
[1720999991085,6.7357,148.47,148.39,6.621]
[1720999991293,45.0,148.48,148.39,6.621]
[1720999991294,51.7349,148.48,148.39,6.621]
[1720999992073,6.736,148.46,148.39,6.621]
[1720999992273,45.0,148.45,148.39,6.621]
[1720999995019,15.4502,148.51,148.39,6.621]
[1720999995313,6.7341,148.5,148.39,6.621]
[1720999995608,14.28781373,148.53,148.41,30.6]
[1720999995903,6.7323,148.54,148.43,9.4373]
[1720999996114,6.7323,148.54,148.44,1.34712351]
[1720999996282,6.7323,148.54,148.44,31.94712351]
[1720999996709,15.6139,148.55,148.45,6.3739]
[1720999996911,6.7322,148.54,148.45,6.3739]
[1720999997486,6.7322,148.54,148.45,7.7209158]
[1720999997681,15.6139,148.55,148.46,1.34701169]
[1720999997886,22.3457,148.55,148.46,1.34701169]
[1720999998698,22.3457,148.55,148.45,6.3739]
[1720999999312,15.6139,148.55,148.46,1.3469221]
[1720999999622,45.0,148.54,148.47,30.6]
[1720999999914,22.856,148.59,148.5,30.6]
[1721000000122,6.7293,148.61,148.5,30.6]
[1721000000284,6.7293,148.61,148.51,20.0]
[1721000001299,6.7295,148.6,148.51,20.0]
[1721000001510,45.0,148.59,148.51,20.0]
[1721000002217,51.73,148.59,148.5,40.0373]
[1721000002432,51.73,148.59,148.49,6.5477]
[1721000002433,45.0,148.59,148.49,6.5477]
[1721000002723,6.7309,148.57,148.49,6.5477]
[1721000003093,45.0,148.56,148.49,6.5477]
[1721000003508,45.0,148.56,148.5,1.34678084]
[1721000003799,45.0,148.56,148.49,6.5477]
[1721000005302,51.7309,148.57,148.49,6.5477]
[1721000006236,45.0,148.57,148.49,6.5477]
[1721000006711,51.7303,148.58,148.49,6.5477]
[1721000007936,45.0,148.58,148.49,6.5477]
[1721000008237,6.7297,148.6,148.5,30.6]
[1721000008431,45.0,148.59,148.51,1.34655018]
[1721000009013,6.7303,148.58,148.5,30.6]
[1721000009339,45.0,148.57,148.49,6.5477]
[1721000009546,51.7308,148.57,148.49,6.5477]
[1721000009714,45.0,148.57,148.49,6.5477]
[1721000010031,45.0,148.57,148.49,7.89433153]
[1721000010240,45.0,148.57,148.49,6.5477]
[1721000010850,45.0,148.57,148.5,1.34663422]
[1721000011515,45.0,148.58,148.5,1.34663422]
[1721000011736,51.7304,148.58,148.5,1.34663422]
[1721000013042,45.0,148.58,148.5,1.34663422]
[1721000013245,45.0,148.58,148.49,6.5477]
[1721000013543,51.7305,148.58,148.5,1.34654805]
[1721000013917,6.7309,148.57,148.49,6.5477]
[1721000014235,45.0,148.56,148.49,6.5477]
[1721000014446,16.8222,148.62,148.49,6.5477]
[1721000015046,6.7295,148.6,148.5,21.34651061]
[1721000015417,46.4522,148.63,148.5,20.0]
[1721000015735,6.7295,148.6,148.5,20.0]
[1721000016051,45.0,148.59,148.5,20.0]
[1721000016253,51.7302,148.59,148.5,20.0]
[1721000016829,6.7304,148.58,148.5,20.0]
[1721000017040,45.0,148.57,148.5,20.0]